fUST/lending_fUST_20260618
["ID","MTS","AMOUNT","RATE_DAILY","PERIOD"]
[425361502,1781722253000,-500.0,0.00016986,2]
[425361501,1781722253000,-840.76,0.00016986,2]
[425361508,1781722253000,-2335.76,0.00016986,2]
[425361506,1781722253000,-500.0,0.00016986,2]
[425361496,1781722253000,-647.98,0.00016986,2]
[425361497,1781722253000,-1185.06,0.00016986,2]
[425361507,1781722253000,-500.0,0.00016986,2]
[425361585,1781722254000,-500.0,0.0001726,2]
[425361586,1781722254000,-500.0,0.0001726,2]
[425361574,1781722254000,-1893.11,0.0001726,2]
[425361576,1781722254000,-500.0,0.0001726,2]
[425361583,1781722254000,-500.0,0.0001726,2]
[425361579,1781722254000,-500.0,0.0001726,2]
[425361578,1781722254000,-500.0,0.0001726,2]
[425361577,1781722254000,-500.0,0.0001726,2]
[425361580,1781722254000,-500.0,0.0001726,2]
[425361582,1781722254000,-463.06154688,0.0001726,2]
[425361575,1781722254000,-500.0,0.0001726,2]
[425361584,1781722254000,-500.0,0.0001726,2]
[425361595,1781722254000,-975.4,0.0001726,2]
[425361587,1781722254000,-416.56674167,0.0001726,2]
[425361590,1781722254000,-500.0,0.0001726,2]
[425361592,1781722254000,-500.0,0.0001726,2]
[425361596,1781722254000,-500.0,0.0001726,2]
[425361573,1781722254000,-544.62556354,0.0001726,2]
[425361591,1781722254000,-500.0,0.0001726,2]
[425361598,1781722254000,-1850.59,0.0001726,2]
[425361589,1781722254000,-500.0,0.0001726,2]
[425361594,1781722254000,-519.39,0.0001726,2]
[425361593,1781722254000,-732.78,0.0001726,2]
[425361588,1781722254000,-3478.92,0.0001726,2]
[425361597,1781722254000,-1137.24,0.0001726,2]
[425361599,1781722254000,-500.0,0.0001726,2]
[425361581,1781722254000,-500.0,0.0001726,2]
[425361572,1781722254000,-500.0,0.0001726,2]
[425361564,1781722254000,-500.0,0.0001726,2]
[425361566,1781722254000,-500.0,0.0001726,2]
[425361601,1781722254000,-500.0,0.0001726,2]
[425361547,1781722254000,-500.0,0.0001726,2]
[425361543,1781722254000,-339.31482907,0.0001726,2]
[425361545,1781722254000,-500.0,0.0001726,2]
[425361546,1781722254000,-500.0,0.0001726,2]
[425361542,1781722254000,-500.0,0.0001726,2]
[425361544,1781722254000,-500.0,0.0001726,2]
[425361549,1781722254000,-500.0,0.0001726,2]
[425361550,1781722254000,-500.0,0.0001726,2]
[425361551,1781722254000,-812.0,0.0001726,2]
[425361560,1781722254000,-500.0,0.0001726,2]
[425361548,1781722254000,-514.75,0.0001726,2]
[425361559,1781722254000,-754.09,0.0001726,2]
[425361552,1781722254000,-659.66,0.0001726,2]
[425361553,1781722254000,-552.9,0.0001726,2]
[425361556,1781722254000,-546.39424282,0.0001726,2]
[425361555,1781722254000,-500.0,0.0001726,2]
[425361557,1781722254000,-1358.43,0.0001726,2]
[425361558,1781722254000,-500.0,0.0001726,2]
[425361561,1781722254000,-500.0,0.0001726,2]
[425361562,1781722254000,-500.0,0.0001726,2]
[425361563,1781722254000,-500.0,0.0001726,2]
[425361569,1781722254000,-500.0,0.0001726,2]
[425361568,1781722254000,-682.69,0.0001726,2]
[425361565,1781722254000,-500.0,0.0001726,2]
[425361570,1781722254000,-588.06,0.0001726,2]
[425361567,1781722254000,-500.0,0.0001726,2]
[425361571,1781722254000,-500.0,0.0001726,2]
[425361554,1781722254000,-693.75,0.0001726,2]
[425361613,1781722254000,-522.81,0.0001726,2]
[425361611,1781722254000,-873.43,0.0001726,2]
[425361629,1781722254000,-500.0,0.0001726,2]
[425361630,1781722254000,-500.0,0.0001726,2]
[425361633,1781722254000,-500.0,0.0001726,2]
[425361631,1781722254000,-2335.76,0.0001726,2]
[425361632,1781722254000,-500.0,0.0001726,2]
[425361634,1781722254000,-701.31,0.0001726,2]
[425361641,1781722254000,-921.73,0.0001726,2]
[425361645,1781722254000,-500.0,0.0001726,2]
[425361646,1781722254000,-305.82,0.00017264,2]
[425361643,1781722254000,-2221.85,0.0001726,2]
[425361644,1781722254000,-2162.59,0.0001726,2]
[425361642,1781722254000,-500.0,0.0001726,2]
[425361648,1781722254000,-161.41,0.00017436,2]
[425361653,1781722254000,-500.0,0.00017534,2]
[425361649,1781722254000,-156.0,0.00017462,2]
[425361652,1781722254000,-1303.36,0.00017534,2]
[425361650,1781722254000,-305.82,0.00017488,2]
[425361647,1781722254000,-305.82,0.00017376,2]
[425361654,1781722254000,-500.0,0.00017534,2]
[425361656,1781722254000,-500.0,0.00017534,2]
[425361655,1781722254000,-500.0,0.00017534,2]
[425361657,1781722254000,-500.0,0.00017534,2]
[425361659,1781722254000,-500.0,0.00017534,2]
[425361658,1781722254000,-500.0,0.00017534,2]
[425361661,1781722254000,-500.0,0.00017534,2]
[425361660,1781722254000,-500.0,0.00017534,2]
[425361612,1781722254000,-500.0,0.0001726,2]
[425361635,1781722254000,-656.06,0.0001726,2]
[425361640,1781722254000,-500.0,0.0001726,2]
[425361651,1781722254000,-500.0,0.00017534,2]
[425361627,1781722254000,-1892.21,0.0001726,2]
[425361603,1781722254000,-13266.56,0.0001726,2]
[425361638,1781722254000,-615.46,0.0001726,2]
[425361600,1781722254000,-500.0,0.0001726,2]
[425361602,1781722254000,-859.62,0.0001726,2]
[425361605,1781722254000,-1380.44,0.0001726,2]
[425361604,1781722254000,-500.0,0.0001726,2]
[425361606,1781722254000,-500.0,0.0001726,2]
[425361607,1781722254000,-588.0,0.0001726,2]
[425361610,1781722254000,-500.0,0.0001726,2]
[425361609,1781722254000,-500.0,0.0001726,2]
[425361616,1781722254000,-500.0,0.0001726,2]
[425361614,1781722254000,-500.0,0.0001726,2]
[425361618,1781722254000,-760.15,0.0001726,2]
[425361615,1781722254000,-500.0,0.0001726,2]
[425361608,1781722254000,-804.99,0.0001726,2]
[425361636,1781722254000,-500.0,0.0001726,2]
[425361639,1781722254000,-2258.76,0.0001726,2]
[425361617,1781722254000,-500.0,0.0001726,2]
[425361628,1781722254000,-500.0,0.0001726,2]
[425361637,1781722254000,-1576.6,0.0001726,2]
[425361626,1781722254000,-839.35,0.0001726,2]
[425361625,1781722254000,-498.0292923,0.0001726,2]
[425361622,1781722254000,-500.0,0.0001726,2]
[425361621,1781722254000,-838.6,0.0001726,2]
[425361624,1781722254000,-840.76,0.0001726,2]
[425361619,1781722254000,-647.98,0.0001726,2]
[425361620,1781722254000,-1185.06,0.0001726,2]
[425361623,1781722254000,-487.68769345,0.0001726,2]
[425361714,1781722255000,-500.0,0.00017534,2]
[425361698,1781722255000,-500.0,0.00017534,2]
[425361699,1781722255000,-500.0,0.00017534,2]
[425361701,1781722255000,-500.0,0.00017534,2]
[425361700,1781722255000,-500.0,0.00017534,2]
[425361697,1781722255000,-500.0,0.00017534,2]
[425361704,1781722255000,-500.0,0.00017534,2]
[425361706,1781722255000,-500.0,0.00017534,2]
[425361705,1781722255000,-500.0,0.00017534,2]
[425361703,1781722255000,-500.0,0.00017534,2]
[425361702,1781722255000,-3478.92,0.00017534,2]
[425361708,1781722255000,-519.39,0.00017534,2]
[425361696,1781722255000,-500.0,0.00017534,2]
[425361715,1781722255000,-500.0,0.00017534,2]
[425361722,1781722255000,-804.99,0.00017534,2]
[425361711,1781722255000,-1137.24,0.00017534,2]
[425361718,1781722255000,-500.0,0.00017534,2]
[425361716,1781722255000,-13266.56,0.00017534,2]
[425361719,1781722255000,-1380.44,0.00017534,2]
[425361717,1781722255000,-859.62,0.00017534,2]
[425361707,1781722255000,-732.78,0.00017534,2]
[425361710,1781722255000,-500.0,0.00017534,2]
[425361712,1781722255000,-1850.59,0.00017534,2]
[425361713,1781722255000,-500.0,0.00017534,2]
[425361720,1781722255000,-531.66502691,0.00017534,2]
[425361723,1781722255000,-500.0,0.00017534,2]
[425361724,1781722255000,-500.0,0.00017534,2]
[425361695,1781722255000,-500.0,0.00017534,2]
[425361709,1781722255000,-975.4,0.00017534,2]
[425361694,1781722255000,-500.0,0.00017534,2]
[425361663,1781722255000,-407.88118264,0.00017534,2]
[425361690,1781722255000,-1893.11,0.00017534,2]
[425361669,1781722255000,-812.0,0.00017534,2]
[425361664,1781722255000,-500.0,0.00017534,2]
[425361662,1781722255000,-500.0,0.00017534,2]
[425361665,1781722255000,-500.0,0.00017534,2]
[425361666,1781722255000,-514.75,0.00017534,2]
[425361667,1781722255000,-500.0,0.00017534,2]
[425361668,1781722255000,-500.0,0.00017534,2]
[425361670,1781722255000,-659.66,0.00017534,2]
[425361676,1781722255000,-754.09,0.00017534,2]
[425361671,1781722255000,-552.9,0.00017534,2]
[425361675,1781722255000,-500.0,0.00017534,2]
[425361681,1781722255000,-500.0,0.00017534,2]
[425361672,1781722255000,-693.75,0.00017534,2]
[425361673,1781722255000,-500.0,0.00017534,2]
[425361680,1781722255000,-500.0,0.00017534,2]
[425361679,1781722255000,-500.0,0.00017534,2]
[425361677,1781722255000,-500.0,0.00017534,2]
[425361674,1781722255000,-1358.43,0.00017534,2]
[425361678,1781722255000,-500.0,0.00017534,2]
[425361683,1781722255000,-500.0,0.00017534,2]
[425361691,1781722255000,-500.0,0.00017534,2]
[425361682,1781722255000,-500.0,0.00017534,2]
[425361693,1781722255000,-500.0,0.00017534,2]
[425361692,1781722255000,-500.0,0.00017534,2]
[425361686,1781722255000,-500.0,0.00017534,2]
[425361689,1781722255000,-500.0,0.00017534,2]
[425361687,1781722255000,-588.06,0.00017534,2]
[425361688,1781722255000,-500.0,0.00017534,2]
[425361684,1781722255000,-500.0,0.00017534,2]
[425361685,1781722255000,-682.69,0.00017534,2]
[425361730,1781722255000,-500.0,0.00017534,2]
[425361728,1781722255000,-500.0,0.00017534,2]
[425361731,1781722255000,-502.59529829,0.00017534,2]
[425361762,1781722255000,-167.31591379,0.00017548,2]
[425361763,1781722255000,-167.79259501,0.00017548,2]
[425361761,1781722255000,-211.98973503,0.00017548,2]
[425361765,1781722255000,-167.49574498,0.00017551,2]
[425361764,1781722255000,-175.99848997,0.00017549,2]
[425361772,1781722255000,-169.92678751,0.00017551,2]
[425361769,1781722255000,-1168.42706197,0.00017551,2]
[425361773,1781722255000,-172.19017492,0.00017551,2]
[425361766,1781722255000,-178.02324608,0.00017551,2]
[425361767,1781722255000,-199.00039843,0.00017551,2]
[425361768,1781722255000,-156.42819626,0.00017551,2]
[425361770,1781722255000,-349.78896752,0.00017551,2]
[425361774,1781722255000,-160.11096687,0.00017551,2]
[425361755,1781722255000,-2221.85,0.00017534,2]
[425361776,1781722255000,-193.90495018,0.00017551,2]
[425361777,1781722255000,-642.60256241,0.00017551,2]
[425361785,1781722255000,-160.82527985,0.00017551,2]
[425361784,1781722255000,-179.53441079,0.00017551,2]
[425361780,1781722255000,-331.05477287,0.00017551,2]
[425361778,1781722255000,-160.08027063,0.00017551,2]
[425361775,1781722255000,-150.57607192,0.00017551,2]
[425361783,1781722255000,-165.99323153,0.00017551,2]
[425361781,1781722255000,-164.49555172,0.00017551,2]
[425361786,1781722255000,-182.15752489,0.00017551,2]
[425361779,1781722255000,-177.79431899,0.00017551,2]
[425361788,1781722255000,-380.95630928,0.00017551,2]
[425361787,1781722255000,-154.5896322,0.00017551,2]
[425361727,1781722255000,-522.81,0.00017534,2]
[425361782,1781722255000,-1581.78914637,0.00017551,2]
[425361751,1781722255000,-2258.76,0.00017534,2]
[425361771,1781722255000,-157.7702477,0.00017551,2]
[425361752,1781722255000,-500.0,0.00017534,2]
[425361725,1781722255000,-873.43,0.00017534,2]
[425361753,1781722255000,-921.73,0.00017534,2]
[425361721,1781722255000,-588.0,0.00017534,2]
[425361726,1781722255000,-500.0,0.00017534,2]
[425361733,1781722255000,-647.98,0.00017534,2]
[425361732,1781722255000,-760.15,0.00017534,2]
[425361729,1781722255000,-500.0,0.00017534,2]
[425361735,1781722255000,-838.6,0.00017534,2]
[425361734,1781722255000,-1185.06,0.00017534,2]
[425361736,1781722255000,-500.0,0.00017534,2]
[425361745,1781722255000,-500.0,0.00017534,2]
[425361737,1781722255000,-840.76,0.00017534,2]
[425361743,1781722255000,-2335.76,0.00017534,2]
[425361738,1781722255000,-839.35,0.00017534,2]
[425361742,1781722255000,-500.0,0.00017534,2]
[425361746,1781722255000,-701.31,0.00017534,2]
[425361754,1781722255000,-500.0,0.00017534,2]
[425361750,1781722255000,-615.46,0.00017534,2]
[425361741,1781722255000,-500.0,0.00017534,2]
[425361749,1781722255000,-1576.6,0.00017534,2]
[425361759,1781722255000,-164.78853071,0.00017548,2]
[425361756,1781722255000,-2162.59,0.00017534,2]
[425361758,1781722255000,-174.14877958,0.00017548,2]
[425361760,1781722255000,-966.71795442,0.00017548,2]
[425361747,1781722255000,-656.06,0.00017534,2]
[425361757,1781722255000,-500.0,0.00017534,2]
[425361744,1781722255000,-500.0,0.00017534,2]
[425361740,1781722255000,-501.94279735,0.00017534,2]
[425361739,1781722255000,-1892.21,0.00017534,2]
[425361748,1781722255000,-500.0,0.00017534,2]
[425361828,1781722256000,-500.0,0.00017808,2]
[425361837,1781722256000,-500.0,0.00017808,2]
[425361832,1781722256000,-500.0,0.00017808,2]
[425361831,1781722256000,-500.0,0.00017808,2]
[425361830,1781722256000,-500.0,0.00017808,2]
[425361829,1781722256000,-1303.36,0.00017808,2]
[425361819,1781722256000,-198.69203726,0.00017596,2]
[425361827,1781722256000,-305.82,0.00017599,2]
[425361825,1781722256000,-151.65197035,0.00017596,2]
[425361822,1781722256000,-174.87653716,0.00017596,2]
[425361821,1781722256000,-187.62562745,0.00017596,2]
[425361835,1781722256000,-500.0,0.00017808,2]
[425361826,1781722256000,-377.88078508,0.00017596,2]
[425361833,1781722256000,-500.0,0.00017808,2]
[425361847,1781722256000,-552.9,0.00017808,2]
[425361834,1781722256000,-500.0,0.00017808,2]
[425361849,1781722256000,-500.0,0.00017808,2]
[425361839,1781722256000,-500.0,0.00017808,2]
[425361838,1781722256000,-500.0,0.00017808,2]
[425361842,1781722256000,-514.75,0.00017808,2]
[425361840,1781722256000,-500.0,0.00017808,2]
[425361841,1781722256000,-500.0,0.00017808,2]
[425361844,1781722256000,-500.0,0.00017808,2]
[425361846,1781722256000,-659.66,0.00017808,2]
[425361845,1781722256000,-812.0,0.00017808,2]
[425361848,1781722256000,-693.75,0.00017808,2]
[425361843,1781722256000,-500.0,0.00017808,2]
[425361818,1781722256000,-158.95414757,0.00017596,2]
[425361836,1781722256000,-500.0,0.00017808,2]
[425361820,1781722256000,-192.35195092,0.00017596,2]
[425361798,1781722256000,-201.54637641,0.00017596,2]
[425361816,1781722256000,-195.49757961,0.00017596,2]
[425361850,1781722256000,-1358.43,0.00017808,2]
[425361790,1781722256000,-1818.18181818,0.00017568,2]
[425361792,1781722256000,-184.21536956,0.00017596,2]
[425361797,1781722256000,-153.47182846,0.00017596,2]
[425361795,1781722256000,-334.05624084,0.00017596,2]
[425361796,1781722256000,-159.27075626,0.00017596,2]
[425361793,1781722256000,-3397.95921361,0.00017596,2]
[425361789,1781722256000,-151.48433216,0.00017561,2]
[425361794,1781722256000,-186.99394724,0.00017596,2]
[425361802,1781722256000,-156.87139645,0.00017596,2]
[425361806,1781722256000,-156.94209489,0.00017596,2]
[425361805,1781722256000,-150.5054138,0.00017596,2]
[425361803,1781722256000,-197.01787546,0.00017596,2]
[425361814,1781722256000,-385.85953595,0.00017596,2]
[425361800,1781722256000,-166.33622575,0.00017596,2]
[425361807,1781722256000,-173.99811731,0.00017596,2]
[425361804,1781722256000,-182.47001745,0.00017596,2]
[425361808,1781722256000,-197.80791155,0.00017596,2]
[425361799,1781722256000,-164.41329009,0.00017596,2]
[425361811,1781722256000,-156.49036024,0.00017596,2]
[425361809,1781722256000,-163.77365519,0.00017596,2]
[425361810,1781722256000,-194.74940698,0.00017596,2]
[425361813,1781722256000,-175.77954876,0.00017596,2]
[425361815,1781722256000,-435.42399792,0.00017596,2]
[425361824,1781722256000,-366.92161128,0.00017596,2]
[425361817,1781722256000,-188.84314478,0.00017596,2]
[425361812,1781722256000,-172.72727273,0.00017596,2]
[425361823,1781722256000,-275.5795818,0.00017596,2]
[425361801,1781722256000,-152.45084225,0.00017596,2]
[425361854,1781722256000,-500.0,0.00017808,2]
[425361791,1781722256000,-885.9112768,0.00017568,2]
[425361851,1781722256000,-500.0,0.00017808,2]
[425361886,1781722256000,-242.29069071,0.00017808,2]
[425361888,1781722256000,-1850.59,0.00017808,2]
[425361889,1781722256000,-500.0,0.00017808,2]
[425361891,1781722256000,-500.0,0.00017808,2]
[425361894,1781722256000,-500.0,0.00017808,2]
[425361890,1781722256000,-500.0,0.00017808,2]
[425361895,1781722256000,-1380.44,0.00017808,2]
[425361899,1781722256000,-500.0,0.00017808,2]
[425361892,1781722256000,-13266.56,0.00017808,2]
[425361893,1781722256000,-859.62,0.00017808,2]
[425361900,1781722256000,-873.43,0.00017808,2]
[425361897,1781722256000,-804.99,0.00017808,2]
[425361898,1781722256000,-500.0,0.00017808,2]
[425361885,1781722256000,-975.4,0.00017808,2]
[425361896,1781722256000,-588.0,0.00017808,2]
[425361901,1781722256000,-500.0,0.00017808,2]
[425361903,1781722256000,-500.0,0.00017808,2]
[425361905,1781722256000,-500.0,0.00017808,2]
[425361902,1781722256000,-522.81,0.00017808,2]
[425361913,1781722256000,-1892.21,0.00017808,2]
[425361912,1781722256000,-839.35,0.00017808,2]
[425361907,1781722256000,-647.98,0.00017808,2]
[425361910,1781722256000,-500.0,0.00017808,2]
[425361906,1781722256000,-760.15,0.00017808,2]
[425361908,1781722256000,-1185.06,0.00017808,2]
[425361911,1781722256000,-840.76,0.00017808,2]
[425361915,1781722256000,-454.36377434,0.00017808,2]
[425361914,1781722256000,-500.0,0.00017808,2]
[425361904,1781722256000,-500.0,0.00017808,2]
[425361884,1781722256000,-519.39,0.00017808,2]
[425361909,1781722256000,-838.6,0.00017808,2]
[425361883,1781722256000,-732.78,0.00017808,2]
[425361887,1781722256000,-1137.24,0.00017808,2]
[425361859,1781722256000,-500.0,0.00017808,2]
[425361856,1781722256000,-500.0,0.00017808,2]
[425361862,1781722256000,-500.0,0.00017808,2]
[425361852,1781722256000,-500.0,0.00017808,2]
[425361857,1781722256000,-500.0,0.00017808,2]
[425361858,1781722256000,-500.0,0.00017808,2]
[425361861,1781722256000,-682.69,0.00017808,2]
[425361860,1781722256000,-500.0,0.00017808,2]
[425361855,1781722256000,-500.0,0.00017808,2]
[425361874,1781722256000,-500.0,0.00017808,2]
[425361864,1781722256000,-500.0,0.00017808,2]
[425361867,1781722256000,-500.0,0.00017808,2]
[425361865,1781722256000,-540.94519425,0.00017808,2]
[425361866,1781722256000,-1893.11,0.00017808,2]
[425361853,1781722256000,-754.09,0.00017808,2]
[425361863,1781722256000,-588.06,0.00017808,2]
[425361875,1781722256000,-500.0,0.00017808,2]
[425361881,1781722256000,-500.0,0.00017808,2]
[425361880,1781722256000,-500.0,0.00017808,2]
[425361879,1781722256000,-500.0,0.00017808,2]
[425361878,1781722256000,-3478.92,0.00017808,2]
[425361876,1781722256000,-500.0,0.00017808,2]
[425361877,1781722256000,-500.0,0.00017808,2]
[425361868,1781722256000,-500.0,0.00017808,2]
[425361870,1781722256000,-500.0,0.00017808,2]
[425361869,1781722256000,-500.0,0.00017808,2]
[425361872,1781722256000,-500.0,0.00017808,2]
[425361871,1781722256000,-500.0,0.00017808,2]
[425361873,1781722256000,-500.0,0.00017808,2]
[425361882,1781722256000,-500.0,0.00017808,2]
[425361967,1781722257000,-500.0,0.00018082,2]
[425361949,1781722257000,-500.0,0.00018082,2]
[425361947,1781722257000,-500.0,0.00018082,2]
[425361954,1781722257000,-500.0,0.00018082,2]
[425361948,1781722257000,-500.0,0.00018082,2]
[425361952,1781722257000,-500.0,0.00018082,2]
[425361951,1781722257000,-512.39706795,0.00018082,2]
[425361950,1781722257000,-500.0,0.00018082,2]
[425361953,1781722257000,-500.0,0.00018082,2]
[425361956,1781722257000,-500.0,0.00018082,2]
[425361957,1781722257000,-500.0,0.00018082,2]
[425361946,1781722257000,-500.0,0.00018082,2]
[425361958,1781722257000,-812.0,0.00018082,2]
[425361959,1781722257000,-659.66,0.00018082,2]
[425361963,1781722257000,-1358.43,0.00018082,2]
[425361961,1781722257000,-693.75,0.00018082,2]
[425361968,1781722257000,-500.0,0.00018082,2]
[425361944,1781722257000,-500.0,0.00018082,2]
[425361966,1781722257000,-754.09,0.00018082,2]
[425361965,1781722257000,-500.0,0.00018082,2]
[425361960,1781722257000,-552.9,0.00018082,2]
[425361964,1781722257000,-500.0,0.00018082,2]
[425361970,1781722257000,-500.0,0.00018082,2]
[425361980,1781722257000,-500.0,0.00018082,2]
[425361972,1781722257000,-500.0,0.00018082,2]
[425361971,1781722257000,-500.0,0.00018082,2]
[425361962,1781722257000,-500.0,0.00018082,2]
[425361955,1781722257000,-514.75,0.00018082,2]
[425361936,1781722257000,-2159.3388,0.00018,2]
[425361940,1781722257000,-212.76,0.00018,2]
[425361981,1781722257000,-500.0,0.00018082,2]
[425361925,1781722257000,-500.0,0.00017808,2]
[425361917,1781722257000,-500.0,0.00017808,2]
[425361926,1781722257000,-921.73,0.00017808,2]
[425361918,1781722257000,-500.0,0.00017808,2]
[425361916,1781722257000,-2335.76,0.00017808,2]
[425361924,1781722257000,-2258.76,0.00017808,2]
[425361921,1781722257000,-500.0,0.00017808,2]
[425361922,1781722257000,-1576.6,0.00017808,2]
[425361919,1781722257000,-701.31,0.00017808,2]
[425361923,1781722257000,-615.46,0.00017808,2]
[425361920,1781722257000,-656.06,0.00017808,2]
[425361945,1781722257000,-500.0,0.00018082,2]
[425361928,1781722257000,-2221.85,0.00017808,2]
[425361927,1781722257000,-500.0,0.00017808,2]
[425361929,1781722257000,-2162.59,0.00017808,2]
[425361932,1781722257000,-443066.98726113,0.00018,2]
[425361937,1781722257000,-166.19131888,0.00018,2]
[425361933,1781722257000,-210099.08097905,0.00018,2]
[425361935,1781722257000,-2159.3388,0.00018,2]
[425361934,1781722257000,-1689.52823633,0.00018,2]
[425361930,1781722257000,-500.0,0.00017808,2]
[425361931,1781722257000,-182.11,0.00017808,2]
[425361941,1781722257000,-500.0,0.00018082,2]
[425361942,1781722257000,-1303.36,0.00018082,2]
[425361943,1781722257000,-500.0,0.00018082,2]
[425361939,1781722257000,-212.76,0.00018,2]
[425361938,1781722257000,-212.76,0.00018,2]
[425361969,1781722257000,-500.0,0.00018082,2]
[425361974,1781722257000,-682.69,0.00018082,2]
[425362003,1781722257000,-13266.56,0.00018082,2]
[425362008,1781722257000,-804.99,0.00018082,2]
[425362012,1781722257000,-500.0,0.00018082,2]
[425362009,1781722257000,-500.0,0.00018082,2]
[425362014,1781722257000,-500.0,0.00018082,2]
[425362015,1781722257000,-500.0,0.00018082,2]
[425362011,1781722257000,-873.43,0.00018082,2]
[425362013,1781722257000,-522.81,0.00018082,2]
[425362018,1781722257000,-647.98,0.00018082,2]
[425362017,1781722257000,-760.15,0.00018082,2]
[425362016,1781722257000,-500.0,0.00018082,2]
[425362010,1781722257000,-500.0,0.00018082,2]
[425361999,1781722257000,-1850.59,0.00018082,2]
[425362020,1781722257000,-838.6,0.00018082,2]
[425362022,1781722257000,-840.76,0.00018082,2]
[425362024,1781722257000,-1892.21,0.00018082,2]
[425362025,1781722257000,-500.0,0.00018082,2]
[425362026,1781722257000,-2335.76,0.00018082,2]
[425362028,1781722257000,-500.0,0.00018082,2]
[425362023,1781722257000,-839.35,0.00018082,2]
[425362029,1781722257000,-701.31,0.00018082,2]
[425362027,1781722257000,-500.0,0.00018082,2]
[425362032,1781722257000,-1576.6,0.00018082,2]
[425362031,1781722257000,-500.0,0.00018082,2]
[425362030,1781722257000,-656.06,0.00018082,2]
[425361973,1781722257000,-500.0,0.00018082,2]
[425362021,1781722257000,-500.0,0.00018082,2]
[425362002,1781722257000,-500.0,0.00018082,2]
[425362019,1781722257000,-1185.06,0.00018082,2]
[425361998,1781722257000,-1137.24,0.00018082,2]
[425361976,1781722257000,-588.06,0.00018082,2]
[425362000,1781722257000,-500.0,0.00018082,2]
[425361978,1781722257000,-1893.11,0.00018082,2]
[425361977,1781722257000,-500.0,0.00018082,2]
[425361975,1781722257000,-500.0,0.00018082,2]
[425361979,1781722257000,-500.0,0.00018082,2]
[425361985,1781722257000,-500.0,0.00018082,2]
[425361986,1781722257000,-500.0,0.00018082,2]
[425361983,1781722257000,-500.0,0.00018082,2]
[425361982,1781722257000,-500.0,0.00018082,2]
[425361988,1781722257000,-500.0,0.00018082,2]
[425361990,1781722257000,-3478.92,0.00018082,2]
[425361987,1781722257000,-500.0,0.00018082,2]
[425361984,1781722257000,-500.0,0.00018082,2]
[425361995,1781722257000,-732.78,0.00018082,2]
[425362005,1781722257000,-500.0,0.00018082,2]
[425361989,1781722257000,-500.0,0.00018082,2]
[425362004,1781722257000,-859.62,0.00018082,2]
[425362001,1781722257000,-500.0,0.00018082,2]
[425362007,1781722257000,-588.0,0.00018082,2]
[425362006,1781722257000,-1380.44,0.00018082,2]
[425361997,1781722257000,-975.4,0.00018082,2]
[425361993,1781722257000,-500.0,0.00018082,2]
[425361994,1781722257000,-500.0,0.00018082,2]
[425361992,1781722257000,-500.0,0.00018082,2]
[425361991,1781722257000,-500.0,0.00018082,2]
[425361996,1781722257000,-519.39,0.00018082,2]
[425362078,1781722258000,-176.25771146,0.00018338,2]
[425362082,1781722258000,-302.96866432,0.00018349,2]